bitfinex/quotes_ETHUSD_20250222
["timestamp","ask_amount","ask_price","bid_price","bid_amount"]
[1740183465228,0.55,2669.2,2668.7,4.27547696]
[1740183465427,0.14277416,2669.1,2669.0,0.7958]
[1740183465611,0.14277416,2669.1,2669.0,4.54252]
[1740183465803,3.0,2669.8,2669.0,1.62997631]
[1740183466001,3.0,2669.8,2669.3,3.74629]
[1740183466209,0.7772,2670.0,2669.7,3.74562]
[1740183466426,0.55,2670.0,2669.7,3.74567]
[1740183467037,0.7772,2670.3,2669.5,0.7958]
[1740183467201,4.52217,2670.3,2669.7,3.74561]
[1740183467405,3.74519,2670.1,2669.7,3.74561]
[1740183468738,0.69228392,2670.0,2669.6,0.454189]
[1740183469123,0.69228392,2670.0,2669.6,3.7458]
[1740183469442,0.69228392,2670.0,2669.7,3.74561]
[1740183470703,0.69228392,2670.0,2669.8,3.74553]
[1740183470915,0.69228392,2670.0,2669.6,3.74581]
[1740183471146,0.69228392,2670.0,2669.7,3.74572]
[1740183471346,0.69228392,2670.0,2669.8,0.749153]
[1740183474044,0.69228392,2670.0,2669.2,3.74633]
[1740183474045,3.74566,2669.8,2669.2,3.74633]
[1740183474244,4.29548,2669.9,2669.3,3.74619]
[1740183474447,0.14266235,2669.7,2669.6,3.74587]
[1740183474613,0.69261935,2669.8,2669.7,4.50043]
[1740183474814,0.55,2669.8,2669.7,4.50043]
[1740183475019,0.69261935,2669.8,2669.7,4.50043]
[1740183475243,0.14261935,2669.8,2669.7,5.32506]
[1740183475612,0.55,2670.2,2669.8,3.74551]
[1740183476543,0.55,2670.2,2669.8,3.74559]
[1740183480585,4.29511,2670.2,2669.7,8.24608]
[1740183480790,4.29511,2670.2,2669.8,3.74556]
[1740183481390,0.55,2670.0,2669.7,3.74572]
[1740183481594,0.55,2670.1,2669.7,3.74562]
[1740183482189,0.55,2670.1,2669.7,7.49127]
[1740183482392,0.55,2670.1,2669.8,3.74559]
[1740183483872,0.14263656,2670.0,2669.8,3.74559]
[1740183485909,0.14263656,2670.0,2669.7,3.74573]
[1740183487512,0.14263656,2670.0,2669.8,3.74551]
[1740183490012,0.14263656,2670.0,2669.6,7.49153]
[1740183490213,0.14263656,2670.0,2669.6,3.74576]
[1740183490419,0.14263656,2670.0,2669.7,3.74571]
[1740183493211,0.14263656,2670.0,2669.8,3.74558]
[1740183494215,0.14263656,2670.0,2669.9,4.59738355]
[1740183494519,3.74399,2671.0,2670.5,3.74453]
[1740183494817,0.13802889,2670.9,2670.5,3.74452]
[1740183495123,0.13802889,2670.9,2670.6,3.74447]
[1740183495477,0.13802889,2670.9,2670.5,3.74452]
[1740183495478,0.7713,2671.1,2670.4,0.7995]
[1740183495716,0.13842525,2670.8,2670.7,4.55013]
[1740183495890,0.8962275,2671.5,2671.3,3.74339]
[1740183496091,0.0969275,2671.5,2671.3,3.74339]
[1740183496293,0.13842525,2671.4,2671.3,3.74339]
[1740183496494,0.13842525,2671.4,2671.3,4.568161]
[1740183496698,0.0969275,2671.5,2671.4,3.74335]
[1740183497305,0.23580064,2671.5,2671.4,3.74335]
[1740183497507,0.0969275,2671.5,2671.4,3.74335]
[1740183497699,0.23580064,2671.5,2671.4,3.74335]
[1740183498036,0.23580064,2671.5,2671.4,4.6505711]
[1740183498717,0.23580064,2671.5,2671.4,5.4112711]
[1740183498913,0.0969275,2671.5,2671.4,1.6679211]
[1740183499246,0.23619671,2671.5,2671.4,4.50405]
[1740183500234,3.97942671,2671.5,2671.1,0.7607]
[1740183500441,1.3121,2671.4,2670.8,1.0397]
[1740183500606,1.45137782,2671.4,2671.1,3.74368]
[1740183500805,0.68927782,2671.4,2671.2,3.74351]
[1740183501000,0.13927782,2671.4,2671.2,3.74351]
[1740183501206,0.13927782,2671.4,2671.3,4.50419]
[1740183502036,0.13927782,2671.4,2671.3,0.7607]
[1740183502240,0.13927782,2671.4,2671.0,4.50453]
[1740183502541,0.13927782,2671.4,2671.2,3.74362]
[1740183502855,0.13927782,2671.4,2671.3,3.74349]
[1740183503407,0.0969275,2671.5,2671.4,3.74335]
[1740183509720,0.23656682,2671.5,2671.4,3.74335]
[1740183509921,0.0969275,2671.5,2671.4,3.74335]
[1740183510123,0.23656682,2671.5,2671.4,4.568104]
[1740183513657,4.73215682,2671.5,2671.1,3.74376]
[1740183513862,0.98886682,2671.5,2671.0,4.847709]
[1740183514161,0.98886682,2671.5,2671.0,4.568709]
[1740183514365,4.73220682,2671.5,2671.0,4.568709]
[1740183514857,0.55,2671.4,2671.0,0.824869]
[1740183515046,0.69112927,2671.4,2671.1,3.74373]
[1740183515253,0.55,2671.2,2670.4,0.8119]
[1740183515448,3.74414,2670.9,2670.4,0.8119]
[1740183515639,3.74414,2670.9,2670.5,0.483571]
[1740183515962,4.29393,2671.0,2670.5,4.228181]
[1740183516262,0.14073334,2670.8,2670.5,4.228081]
[1740183516566,0.14073334,2670.7,2670.6,3.74446]
[1740183516865,4.29391,2671.0,2670.5,0.483571]
[1740183517159,4.29391,2671.0,2670.5,4.228171]
[1740183517371,0.14073334,2670.9,2670.6,4.6228311]
[1740183517550,0.55,2670.4,2670.0,3.74528]
[1740183517863,0.13911449,2670.3,2670.2,3.74503]
[1740183518063,0.13911449,2670.3,2670.2,5.30595]
[1740183518228,0.55,2671.0,2670.5,3.74459]
[1740183518660,0.55,2671.0,2670.5,7.48918]
[1740183518965,0.55,2671.0,2670.5,3.74453]
[1740183519341,0.55,2671.0,2670.6,3.74446]
[1740183520060,0.55,2671.0,2670.5,7.48906]
[1740183520229,0.55,2671.0,2670.5,8.265866]
[1740183520431,0.55,2670.8,2670.2,3.74495]
[1740183520661,0.55,2670.8,2669.9,4.60973485]
[1740183520965,7.36089039,2671.4,2670.6,3.7444]
[1740183520966,3.0,2671.1,2670.6,3.7444]
[1740183521141,0.55,2671.0,2670.6,7.4888]
[1740183521336,0.55,2671.0,2670.6,3.7444]
[1740183521543,0.55,2671.0,2670.4,7.48932]
[1740183521743,3.74414,2670.9,2670.4,4.574752]
[1740183521928,3.74434,2670.7,2670.0,4.02422]
[1740183522125,3.74461,2670.6,2670.0,4.02422]
[1740183522553,3.74491,2670.3,2670.0,0.279]
[1740183522767,0.8115,2670.2,2670.0,0.279]
[1740183523353,0.8115,2670.2,2669.7,0.05]
[1740183523665,4.55666,2670.2,2669.7,4.945499]
[1740183524458,0.8115,2670.2,2669.9,3.74538]
[1740183524646,0.8115,2670.2,2669.9,7.49075]
[1740183524969,0.8115,2670.2,2669.9,3.74537]
[1740183525583,3.74391,2671.1,2669.9,0.8119]
[1740183525788,0.55,2670.7,2670.3,7.4896]
[1740183526133,0.55,2670.7,2670.1,3.74509]
[1740183526333,8.03888,2670.7,2670.1,3.74509]
[1740183526570,3.74449,2670.6,2670.1,3.74509]
[1740183527345,3.74449,2670.6,2670.1,3.74506]
[1740183527546,3.74449,2670.6,2670.2,3.74503]
[1740183527839,3.74449,2670.6,2670.1,7.49016]
[1740183528058,3.74449,2670.6,2670.1,3.74506]
[1740183528263,0.55,2670.7,2670.1,3.74506]
[1740183528462,0.55,2670.7,2670.2,3.74503]
[1740183528648,0.55,2670.7,2670.3,3.74485]
[1740183528832,0.13878711,2670.6,2670.3,3.74485]
[1740183529471,0.13878711,2670.6,2670.5,3.74461]
[1740183529772,0.8115,2671.1,2670.5,6.1819]
[1740183529975,0.13909729,2671.0,2670.9,3.74402]
[1740183530339,0.13909729,2671.0,2670.8,9.11417]
[1740183530651,4.57242,2671.3,2670.8,9.11417]
[1740183530852,0.55,2671.1,2670.8,5.37]
[1740183531056,0.13909729,2671.2,2670.9,3.74396]
[1740183531378,0.8289,2671.3,2671.2,3.74363]
[1740183531543,0.8289,2671.3,2671.0,3.74378]
[1740183531739,0.8289,2671.3,2670.9,9.11398]
[1740183531740,0.8289,2671.3,2671.1,3.74375]
[1740183532046,0.8289,2671.3,2671.1,7.4875]
[1740183532261,0.9258275,2671.5,2671.1,3.74368]
[1740183532452,0.55,2671.4,2671.0,3.74391]
[1740183532658,4.29337,2671.4,2670.9,9.114]
[1740183532852,0.55,2671.4,2671.0,3.74384]
[1740183534287,0.55,2671.0,2670.9,5.37]
[1740183534573,4.29391,2671.0,2670.9,5.37]
[1740183536470,0.55,2671.0,2670.9,5.37]
[1740183536666,0.7567,2671.3,2670.9,9.11398]
[1740183537402,0.55,2671.2,2670.9,9.11398]
[1740183539805,0.0969275,2671.5,2671.4,3.74335]
[1740183540105,0.0969275,2671.5,2670.9,10.108188]
[1740183540409,0.0969275,2671.5,2671.1,3.74363]
[1740183540572,0.13502163,2671.4,2671.1,3.74363]
[1740183540901,0.13502163,2671.4,2671.1,7.48733]
[1740183541103,0.13502163,2671.4,2671.2,1.285733]
[1740183541306,0.89172163,2671.4,2671.0,5.37]
[1740183541469,3.74349,2671.3,2671.0,5.37]
[1740183541672,0.55,2671.2,2671.0,5.37]
[1740183541896,0.68520285,2671.2,2671.0,5.37]
[1740183542409,4.42885285,2671.2,2671.0,5.37]
[1740183543004,0.68520285,2671.2,2671.0,5.37]
[1740183543214,4.42891285,2671.2,2671.0,5.37]
[1740183543374,0.68520285,2671.2,2671.0,5.37]
[1740183543905,4.42893285,2671.2,2671.0,5.37]
[1740183544604,0.68520285,2671.2,2671.0,5.37]
[1740183544806,4.29377,2671.1,2671.0,5.37]
[1740183545007,5.05047,2671.1,2671.0,5.37]
[1740183545209,5.18567285,2671.1,2671.0,5.37]
[1740183545372,0.55,2670.9,2670.5,3.74455]
[1740183545707,0.68506478,2670.8,2670.7,3.74428]
[1740183545894,0.68506478,2670.8,2670.5,9.11452]
[1740183546094,0.68506478,2670.8,2670.5,5.37]
[1740183548416,0.68506478,2670.8,2670.5,6.655954]
[1740183548716,0.68506478,2670.8,2670.5,10.400554]
[1740183549215,0.68506478,2670.8,2670.6,3.74438]
[1740183549415,0.13506478,2670.8,2670.7,3.74433]
[1740183549610,0.7567,2671.0,2670.7,3.74433]
[1740183549823,0.13506478,2670.9,2670.7,3.74433]
[1740183550004,0.13506478,2670.9,2670.7,5.2415664]
[1740183550885,0.55,2671.1,2670.7,5.2415664]
[1740183551085,0.13506478,2670.8,2670.7,3.74433]
[1740183551286,0.55,2671.1,2670.7,3.74433]
[1740183551497,0.13497848,2670.8,2670.7,3.74433]
[1740183551814,0.55,2671.1,2670.8,3.74408]
[1740183552798,0.8,2671.4,2670.6,0.8277]
[1740183552999,0.0969275,2671.5,2671.4,3.74335]
[1740183553612,0.0969275,2671.5,2671.4,9.11335]
[1740183555088,0.0969275,2671.5,2671.1,3.7437]
[1740183555089,0.55,2671.4,2671.1,5.37]
[1740183555606,0.0969275,2671.5,2671.2,3.74362]
[1740183555812,0.0969275,2671.5,2671.2,3.74355]
[1740183556207,0.0969275,2671.5,2671.3,3.74345]
[1740183558113,0.0969275,2671.5,2671.3,3.74339]
[1740183558321,0.0969275,2671.5,2671.4,3.74335]
[1740183558724,0.0969275,2671.5,2671.4,4.573004]
[1740183558909,0.2244865,2671.5,2671.4,4.573004]
[1740183559234,0.0969275,2671.5,2671.4,4.573004]
[1740183559393,0.2244865,2671.5,2671.4,4.573004]
[1740183560295,0.0969275,2671.5,2671.4,4.573004]
[1740183560927,0.0969275,2671.5,2671.4,19.552804]
[1740183561532,7.5e-06,2671.5,2671.4,19.552804]
[1740183561861,7.5e-06,2671.5,2671.4,22.552804]
[1740183564038,0.04,2672.4,2671.4,22.552804]
[1740183564039,1e-05,2674.0,2672.4,0.8098]
[1740183564200,0.1469275,2674.2,2674.1,3.73957]
[1740183564399,0.1469275,2674.2,2674.1,4.54937]
[1740183564954,0.1469275,2674.2,2673.3,0.287]
[1740183564955,3.73957,2674.1,2673.3,0.287]
[1740183565131,0.1469275,2674.2,2673.5,3.74041]
[1740183565303,0.1469275,2674.2,2673.3,9.39765]
[1740183565498,3.74055,2673.4,2673.0,5.37]
[1740183565714,0.55,2673.3,2673.0,5.37]
[1740183566827,4.29097,2673.1,2673.0,5.37]
[1740183567251,3.74167,2672.6,2672.5,6.889]
[1740183567469,4.29167,2672.6,2672.5,6.889]
[1740183568268,3.74237,2672.1,2671.6,5.657]
[1740183568479,3.7427,2671.9,2671.6,0.287]
[1740183568817,3.74257,2672.0,2671.4,0.829654]
[1740183569014,4.29274,2671.9,2671.4,0.829654]
[1740183569219,3.74293,2671.7,2671.2,5.37]
[1740183569455,4.29271,2671.9,2671.2,9.11359]
[1740183569630,4.29271,2671.9,2671.2,5.37]
[1740183570020,4.29271,2671.9,2671.2,9.11363]
[1740183570480,4.29267,2671.9,2671.2,9.11363]
[1740183570655,4.29267,2671.9,2671.3,0.911363]
[1740183571067,0.55,2671.9,2671.3,0.911363]
[1740183571440,0.55,2671.9,2671.3,4.654843]
[1740183571841,0.55,2671.7,2671.3,4.654843]
[1740183572358,0.10602273,2671.6,2671.3,0.911363]
[1740183572879,0.8121,2672.3,2671.7,3.74282]
[1740183573584,0.55,2672.2,2671.7,3.74282]
[1740183573789,0.55,2672.2,2671.8,3.74278]
[1740183573990,0.09730287,2672.1,2671.6,3.74297]
[1740183574158,0.55,2672.0,2671.4,1.0024993]
[1740183574364,3.74302,2671.7,2671.2,5.37]
[1740183574532,0.55,2671.6,2671.2,5.37]
[1740183574979,0.09761667,2671.5,2671.2,5.37]
[1740183576187,0.55,2671.4,2671.2,5.37]
[1740183576366,4.29343,2671.4,2671.2,5.37]
[1740183576563,0.55,2671.2,2671.0,6.887]
[1740183577071,0.0970116,2671.1,2671.0,6.887]
[1740183580873,0.0970116,2671.1,2671.0,10.63091]
[1740183581074,0.0970116,2671.1,2671.0,10.58091]
[1740183581280,0.0970116,2671.1,2671.0,6.837]
[1740183581880,0.0970116,2671.1,2671.0,10.58091]
[1740183582087,0.0970116,2671.1,2671.0,6.837]
[1740183583190,4.51111,2670.5,2670.4,5.37]
[1740183583365,0.55,2670.4,2670.1,5.37]
[1740183583890,0.09658595,2670.3,2670.1,9.11515]
[1740183584288,4.29507,2670.2,2669.7,0.05]
[1740183584495,0.55,2669.9,2669.7,0.05]
[1740183585087,0.09567894,2669.8,2669.7,4.33773]
[1740183585390,0.60263218,2670.4,2669.7,1.3896]
[1740183585590,0.55,2670.2,2669.7,1.3896]
[1740183585992,0.55,2670.2,2669.8,3.74549]
[1740183586298,0.09514672,2670.1,2669.8,3.74549]
[1740183586594,0.09514672,2670.1,2669.8,4.633577]
[1740183587293,0.55,2670.0,2669.7,0.05]
[1740183587462,0.09477674,2669.9,2669.7,0.05]
[1740183588570,0.55,2670.1,2669.7,3.79563]
[1740183588973,0.09468231,2670.0,2669.7,3.79563]
[1740183594194,7.36234039,2670.4,2669.7,3.79563]
[1740183594195,0.804,2671.6,2669.9,3.61749039]
[1740183594358,3.61749039,2671.1,2670.0,6.4374]
[1740183594559,3.74405,2670.9,2670.3,3.7448]
[1740183594757,3.74405,2670.9,2670.0,6.4374]
[1740183594758,3.61749039,2671.1,2670.0,6.4374]
[1740183594992,4.54758,2671.3,2670.0,6.4374]
[1740183594993,3.74371,2671.2,2670.5,3.74451]
[1740183595292,7.36022039,2671.9,2670.8,3.74419]
[1740183595495,7.36022039,2671.9,2670.8,5.37]
[1740183595702,0.55,2671.8,2671.4,3.74334]
[1740183595879,0.55,2671.8,2671.3,3.7434]
[1740183596086,7.36022039,2671.9,2671.3,3.7434]
[1740183596282,3.74282,2671.8,2671.3,3.7434]
[1740183596593,3.61749039,2671.9,2671.3,3.74348]
[1740183596799,7.36022039,2671.9,2671.3,3.74348]
[1740183597165,11.10295039,2671.9,2671.3,3.74348]
[1740183597690,7.36022039,2671.9,2671.2,9.11352]
[1740183598296,0.55,2671.8,2671.2,9.11352]
[1740183598901,4.2928,2671.8,2671.2,9.11352]
[1740183599194,0.55,2671.6,2671.2,5.37]
[1740183599438,4.29349,2671.3,2671.2,5.37]
[1740183601797,0.6269631,2671.3,2671.2,5.37]
[1740183602503,0.6269631,2671.3,2670.9,12.858]
[1740183602663,0.6269631,2671.3,2670.9,9.11398]
[1740183603682,0.6269631,2671.3,2670.9,5.37]
[1740183603982,0.55,2671.2,2670.9,5.37]
[1740183604171,0.55,2670.8,2670.4,9.11475]
[1740183604373,0.55,2670.8,2670.4,5.37]
[1740183604572,0.0774874,2670.7,2670.4,5.37]
[1740183604779,0.0774874,2670.7,2670.5,3.74461]
[1740183604999,3.8293,2671.3,2670.7,3.74433]
[1740183605212,3.8293,2671.3,2670.7,9.86321]
[1740183605409,0.55,2671.1,2670.7,9.86321]
[1740183605711,0.07742626,2671.0,2670.7,9.86321]
[1740183605878,3.74363,2671.2,2670.7,9.86321]
[1740183606073,0.07742626,2670.9,2670.7,9.86321]
[1740183606278,3.74363,2671.2,2670.8,1.069571]
[1740183606478,0.07742626,2670.8,2670.7,9.86321]
[1740183606675,0.55,2671.2,2670.7,9.86321]
[1740183606882,0.0771775,2670.8,2670.7,9.86313]
[1740183607221,8.03739,2671.2,2670.7,9.86313]
[1740183607384,0.0771775,2670.8,2670.7,9.11433]
[1740183607585,4.29365,2671.2,2670.7,9.11433]
[1740183607811,0.0771775,2671.1,2670.7,9.11433]
[1740183608008,0.0771775,2671.1,2670.7,5.37]
[1740183608311,0.0771775,2671.1,2670.9,3.74405]
[1740183608488,0.55,2671.3,2670.9,3.74405]
[1740183608692,0.0771775,2671.0,2670.9,3.74405]
[1740183608892,0.55,2671.3,2670.9,5.029881]
[1740183609193,0.0771775,2671.0,2670.9,5.029881]
[1740183609391,0.55,2671.3,2670.9,5.029881]
[1740183609708,3.74398,2671.0,2670.7,5.37]
[1740183610110,0.55,2671.1,2670.7,5.37]
[1740183610415,0.07724738,2670.9,2670.7,5.37]
[1740183610611,3.74419,2670.8,2670.7,5.37]
[1740183610821,4.37143738,2670.8,2670.7,5.37]
[1740183611318,5.17493738,2670.8,2670.7,5.37]
[1740183612018,0.07724738,2670.8,2670.7,5.37]
[1740183612319,4.54734,2671.1,2670.7,5.37]
[1740183612519,0.07415984,2670.8,2670.7,5.37]
[1740183612820,4.54734,2671.1,2670.7,6.281437]
[1740183613025,0.07415984,2670.8,2670.7,5.37]
[1740183613209,0.55,2671.0,2670.7,5.37]
[1740183613405,0.07415984,2670.8,2670.7,5.37]
[1740183613716,0.07416855,2670.8,2670.7,5.37]
[1740183613915,4.29392,2671.0,2670.7,5.37]
[1740183614129,4.36835855,2670.8,2670.7,5.37]
[1740183614480,3.74457,2670.6,2670.1,6.1408]
[1740183614785,3.74463,2670.5,2670.1,6.1408]
[1740183614989,3.81884229,2670.5,2670.1,6.1408]
[1740183615519,0.55,2670.4,2670.1,5.37]
[1740183615724,0.07408986,2670.4,2670.1,10.906657]
[1740183615901,0.55,2670.7,2670.1,10.906637]
[1740183616102,0.07408111,2670.3,2670.1,10.906627]
[1740183616299,3.74466,2670.5,2670.1,7.161537]
[1740183616502,0.07395861,2670.2,2670.1,7.161537]
[1740183616699,0.55,2670.7,2670.1,10.906707]
[1740183616890,0.55,2670.7,2670.3,3.74488]
[1740183617090,0.55,2670.7,2670.2,4.8356007]
[1740183617287,0.55,2670.7,2670.4,3.74473]
[1740183617692,6.74406,2670.9,2670.4,3.74468]
[1740183617894,3.7442,2670.8,2670.3,0.7534]
[1740183618093,3.7442,2670.8,2670.3,5.77334777]
[1740183618299,0.55,2670.5,2670.1,5.37]
[1740183618638,4.2947,2670.5,2670.1,5.37]
[1740183619203,0.0738449,2670.4,2670.1,5.37]
[1740183619737,3.74535,2670.0,2669.7,0.8034]
[1740183620038,0.62367867,2670.3,2669.8,4.36293]
[1740183620341,0.07352117,2669.9,2669.8,4.36293]
[1740183620640,3.74498,2670.3,2669.8,4.36293]
[1740183620844,0.07352117,2669.9,2669.8,4.36293]
[1740183621038,0.55,2670.3,2669.8,4.36293]
[1740183621520,0.55,2670.3,2669.9,3.74545]
[1740183621521,0.07347742,2670.2,2669.9,3.74545]
[1740183621717,0.07347742,2670.2,2669.9,3.74539]
[1740183622041,4.52557,2670.6,2669.9,3.74539]
[1740183622042,3.74462,2670.5,2670.0,3.74523]
[1740183622242,0.55,2670.5,2669.8,4.36291]
[1740183622562,0.07347742,2670.4,2669.9,3.74533]
[1740183622856,0.07347742,2670.4,2670.0,0.810824]
[1740183623158,0.07347742,2670.4,2670.0,4.556094]
[1740183623449,0.07347742,2670.4,2670.0,9.926094]
[1740183624008,3.81826742,2670.4,2670.0,6.180824]
[1740183624208,0.07347742,2670.4,2670.3,3.74489]
[1740183624839,0.55,2670.6,2670.3,3.74489]
[1740183625140,3.7444,2670.7,2670.3,0.41333208]
[1740183625445,0.07355617,2670.5,2670.3,0.41333208]
[1740183625640,3.7444,2670.7,2670.3,0.41333208]
[1740183625841,0.07355617,2670.4,2670.3,0.41333208]
[1740183626309,7.48886,2670.7,2670.3,0.41333208]
[1740183626509,0.07355617,2670.4,2670.3,0.41333208]
[1740183626734,7.48886,2670.7,2670.3,0.41333208]
[1740183626933,0.07355617,2670.4,2670.3,0.41333208]
[1740183627141,3.7444,2670.7,2670.3,0.41333208]
[1740183627344,0.781,2670.8,2670.3,0.41333208]
[1740183627551,3.7447,2670.5,2670.0,10.679524]
[1740183627711,3.74485,2670.4,2670.0,6.934224]
[1740183627909,3.7449,2670.3,2670.0,6.934224]
[1740183628107,8.69306452,2670.8,2670.0,6.934224]
[1740183628108,3.74517,2670.1,2670.0,5.37]
[1740183628532,3.81865617,2670.1,2670.0,5.37]
[1740183629248,3.74545,2669.9,2669.8,5.98734]
[1740183629813,3.81879615,2669.9,2669.8,5.98734]
[1740183630013,0.07334615,2669.9,2669.8,5.98734]
[1740183630724,3.74517,2670.1,2669.8,5.98734]
[1740183630910,0.07334615,2669.9,2669.8,5.98734]
[1740183631112,3.74533,2670.0,2669.8,5.98734]
[1740183631422,0.07301365,2669.9,2669.8,9.73293]
[1740183631963,0.55,2670.4,2670.1,3.74516]
[1740183632167,7.57114,2670.6,2670.1,3.74516]
[1740183632459,6.74454,2670.6,2670.2,3.74502]
[1740183632817,6.74454,2670.6,2670.1,4.53506]
[1740183632818,10.48909,2670.6,2670.1,4.53499]
[1740183633017,6.74454,2670.6,2670.1,4.53499]
[1740183633729,0.11397076,2670.5,2670.1,9.108123]
[1740183633926,0.11397076,2670.5,2670.1,1.617933]
[1740183634116,3.74398,2671.0,2670.5,3.74448]
[1740183634522,0.8266,2671.1,2670.4,5.37]
[1740183634523,4.21161415,2670.9,2670.4,5.37]
[1740183634751,4.29461,2670.5,2670.4,5.37]
[1740183634973,4.5709,2670.8,2670.4,5.37]
[1740183635170,0.8266,2671.1,2670.5,4.3606]
[1740183635316,4.57049,2671.1,2670.6,3.74439]
[1740183635509,0.55,2671.0,2670.6,3.74439]
[1740183635730,3.74415,2670.9,2670.5,0.61599]
[1740183635961,0.55,2671.0,2670.4,5.37]
[1740183635962,3.74426,2670.8,2670.4,5.37]
[1740183636267,4.29402,2671.0,2670.5,3.74455]
[1740183636766,3.74419,2670.9,2670.4,9.11464]
[1740183636919,3.74419,2670.9,2670.4,12.85932]
[1740183637122,3.74419,2670.9,2670.4,9.11464]
[1740183637319,3.74417,2670.9,2670.4,9.11464]
[1740183637519,3.74398,2671.0,2670.5,3.74456]
[1740183637767,0.55,2670.9,2670.6,3.74447]
[1740183638153,0.8266,2671.1,2670.6,1.285911]
[1740183638451,4.5704,2671.1,2670.7,3.74426]
[1740183638652,4.5704,2671.1,2670.6,1.285911]
[1740183638854,4.5704,2671.1,2670.6,5.030371]
[1740183640882,3.74391,2671.0,2670.6,5.030371]
[1740183641088,3.74391,2671.0,2670.6,10.400371]
[1740183641392,3.74406,2670.9,2670.6,6.655911]
[1740183641695,3.74393,2671.0,2670.6,10.400371]
[1740183642391,4.5704,2671.1,2670.7,3.74422]
[1740183642392,0.8266,2671.1,2670.7,3.74422]
[1740183642779,4.5704,2671.1,2670.7,3.74422]
[1740183643278,3.7438,2671.1,2670.7,3.74422]
[1740183643675,0.7788,2671.3,2671.0,3.74379]
[1740183643876,0.7788,2671.6,2671.0,3.74378]
[1740183644086,6.74323,2671.5,2671.0,9.11378]
[1740183644400,3.74323,2671.5,2671.0,5.37]
[1740183644546,0.7788,2671.6,2671.2,3.74359]
[1740183644746,3.74296,2671.7,2671.3,3.74349]
[1740183644991,3.74296,2671.7,2671.2,4.51259]
[1740183645553,3.74313,2671.6,2671.2,0.769]
[1740183645754,3.74296,2671.7,2671.2,4.51256]
[1740183645954,3.74315,2671.6,2671.2,0.769]
[1740183646282,3.74327,2671.5,2671.0,11.27747193]
[1740183646649,3.74315,2671.6,2671.0,11.27747193]
[1740183646851,3.74315,2671.6,2671.1,3.74367]
[1740183647203,3.74295,2671.7,2671.2,3.7436]
[1740183648886,0.10719666,2671.6,2671.2,3.7436]
[1740183649602,3.74322,2671.5,2671.1,1.12772519]
[1740183649808,3.85041666,2671.5,2671.1,1.12772519]
[1740183649989,3.85041666,2671.5,2671.1,6.49772519]
[1740183651790,3.85041666,2671.5,2671.1,10.24148519]
[1740183652089,0.10719666,2671.5,2671.1,10.24148519]
[1740183652290,0.10719666,2671.5,2671.2,5.35850771]
[1740183652750,0.10719666,2671.5,2671.2,5.35842771]
[1740183652953,3.74294,2671.7,2671.2,5.35842771]
[1740183653153,0.10756524,2671.4,2671.2,5.35842771]
[1740183653384,3.74308,2671.6,2671.2,1.61488771]
[1740183653595,3.74308,2671.6,2671.1,5.37]
[1740183653596,0.10756524,2671.3,2671.1,5.37]
[1740183653761,3.74336,2671.4,2671.1,5.37]
[1740183654090,0.10756524,2671.2,2671.1,5.37]
[1740183654594,3.74336,2671.4,2671.1,5.37]
[1740183654776,0.10756524,2671.2,2671.1,5.37]
[1740183654982,4.57503,2671.2,2671.1,5.37]
[1740183655184,0.10795137,2671.2,2671.1,5.37]
[1740183655488,0.8314,2671.5,2671.1,5.37]
[1740183655657,0.10795137,2671.2,2671.1,5.37]
[1740183655853,3.74347,2671.4,2671.1,5.37]
[1740183656191,3.7428,2671.8,2671.1,9.90797]
[1740183656192,4.55528,2671.8,2671.1,9.90797]
[1740183656396,0.10784607,2671.3,2671.1,6.1642]
[1740183656687,6.74302,2671.7,2671.1,9.90786]
[1740183656864,0.10774075,2671.2,2671.1,9.90786]
[1740183657065,3.74308,2671.6,2671.1,11.273035]
[1740183657265,0.10774075,2671.2,2671.1,11.273035]
[1740183657790,3.74293,2671.7,2671.2,3.74351]
[1740183657965,3.74293,2671.7,2671.1,11.273035]
[1740183658170,3.74329,2671.5,2671.1,11.273035]
[1740183658394,3.61551348,2671.6,2671.1,7.529375]
[1740183658573,3.74343,2671.4,2671.1,5.37]
[1740183659364,3.74363,2671.2,2671.1,5.37]
[1740183660700,4.55589,2671.3,2671.1,5.37]
[1740183661344,8.2995,2671.3,2671.1,5.37]
[1740183661558,3.74363,2671.2,2671.1,5.37]
[1740183662154,8.2995,2671.3,2671.1,5.37]
[1740183662450,3.74363,2671.2,2671.1,5.37]
[1740183663842,3.85136199,2671.2,2671.1,5.37]
[1740183665016,3.74421,2670.8,2670.6,5.37]
[1740183665346,3.74489,2670.3,2670.1,6.889]
[1740183665533,0.10756525,2670.7,2670.5,3.74454]
[1740183665740,3.74381,2671.1,2670.6,4.913124]
[1740183665952,3.74381,2671.1,2670.6,1.168654]
[1740183666444,3.74381,2671.1,2670.6,4.913114]
[1740183666646,0.8124,2671.4,2670.6,6.538654]
[1740183666960,3.7435,2671.3,2670.9,3.74405]
[1740183667418,3.7435,2671.3,2670.9,4.118455]
[1740183674162,3.74341,2671.4,2670.9,4.118455]
[1740183674464,3.74349,2671.3,2670.9,0.374405]
[1740183674850,3.74349,2671.3,2670.9,4.118455]
[1740183675460,3.74333,2671.5,2670.9,4.118455]
[1740183675654,3.74337,2671.4,2670.9,4.118455]
[1740183675854,3.74337,2671.4,2670.9,7.862445]
[1740183676062,3.74337,2671.4,2670.9,4.118395]
[1740183676440,3.74337,2671.4,2670.9,4.118375]
[1740183677662,3.74351,2671.3,2670.9,3.74397]